bitfinex/quotes_SOLUSD_20220216
["timestamp","ask_amount","ask_price","bid_price","bid_amount"]
[1644984855197,28.6371,102.38,102.33,39.95825434]
[1644984857495,28.6371,102.38,102.33,2.1832505]
[1644984860600,28.6371,102.38,102.33,47.41286088]
[1644984860802,14.6571,102.38,102.33,47.41286088]
[1644984862805,28.6371,102.38,102.33,47.41286088]
[1644984863606,14.6571,102.38,102.33,47.41286088]
[1644984871311,14.6539,102.39,102.33,47.41286088]
[1644984872211,14.6539,102.39,102.33,143.94286088]
[1644984872411,48.8461,102.42,102.33,143.94286088]
[1644984872412,13.98,102.42,102.35,42.10932362]
[1644984872617,64.16475229,102.44,102.35,138.63932362]
[1644984872916,48.8363,102.44,102.37,48.7766271]
[1644984873516,14.6494,102.42,102.37,48.7766271]
[1644984875412,14.6494,102.42,102.37,145.3066271]
[1644984876012,14.6482,102.43,102.37,145.3066271]
[1644984876415,14.6482,102.43,102.37,48.7766271]
[1644984878921,14.6482,102.43,102.39,35.08423626]
[1644984885244,14.6466,102.44,102.39,35.08423626]
[1644984885444,15.32845229,102.47,102.39,35.08423626]
[1644984885645,15.32845229,102.47,102.39,131.61423626]
[1644984885947,15.32845229,102.47,102.39,134.03200516]
[1644984886143,13.98,102.47,102.39,134.03200516]
[1644984886946,14.6451,102.45,102.39,148.67650516]
[1644984889447,14.6435,102.46,102.39,148.67650516]
[1644984889647,48.06685229,102.49,102.39,148.92650516]
[1644984889845,46.7184,102.49,102.39,148.92650516]
[1644984890447,14.6407,102.48,102.39,148.92650516]
[1644984890855,14.6407,102.48,102.39,197.47650516]
[1644984892257,14.6407,102.48,102.39,212.30730516]
[1644984892459,61.3577,102.49,102.39,212.30730516]
[1644984897467,61.3577,102.49,102.39,52.39650516]
[1644984897668,61.3577,102.49,102.39,148.92650516]
[1644984897867,61.3577,102.49,102.39,52.39650516]
[1644984898571,61.3577,102.49,102.39,146.25873626]
[1644984898774,65.12392119,102.49,102.39,146.25873626]
[1644984899871,65.12392119,102.49,102.41,48.03958166]
[1644984901573,62.70615229,102.49,102.41,48.03958166]
[1644984903801,62.70615229,102.49,102.41,144.56958166]
[1644984904698,62.70615229,102.49,102.41,48.03958166]
[1644984904898,13.98,102.48,102.41,48.03958166]
[1644984905098,14.6436,102.46,102.41,48.03958166]
[1644984913310,14.6436,102.46,102.38,14.6465]
[1644984913512,38.5818,102.46,102.38,14.6465]
[1644984913908,39.93025229,102.46,102.38,14.6465]
[1644984914315,39.93025229,102.46,102.39,43.81285674]
[1644984914710,38.5818,102.46,102.39,43.81285674]
[1644984915210,38.5818,102.46,102.39,58.45835674]
[1644984916019,38.5818,102.46,102.39,43.81285674]
[1644984918923,38.5818,102.46,102.39,58.45815674]
[1644984927860,39.93025229,102.46,102.39,58.45815674]
[1644984929662,53.91025229,102.46,102.39,57.95815674]
[1644984930164,53.91025229,102.46,102.39,154.48815674]
[1644984930768,53.91025229,102.46,102.39,57.95815674]
[1644984936474,14.6455,102.44,102.39,154.48815674]
[1644984936673,14.6455,102.44,102.39,57.95815674]
[1644984937774,14.6455,102.44,102.39,154.48815674]
[1644984937975,14.6443,102.45,102.39,156.90592564]
[1644984941078,14.6443,102.45,102.39,60.37592564]
[1644984941280,14.6443,102.45,102.39,57.95815674]
[1644984941678,15.99275229,102.45,102.39,43.31285674]
[1644984942980,1.34845229,102.44,102.36,10.19991692]
[1644984943180,14.6527,102.41,102.34,78.3716]
[1644984943388,14.6527,102.41,102.33,26.18077736]
[1644984943781,14.6527,102.41,102.33,24.8098]
[1644984943983,14.6527,102.41,102.34,34.6422913]
[1644984944182,16.00115229,102.41,102.34,34.6422913]
[1644984944585,14.6527,102.41,102.34,34.6422913]
[1644984944782,28.6327,102.41,102.34,34.6422913]
[1644984950504,28.6327,102.41,102.34,37.0600602]
[1644984951810,28.6327,102.41,102.34,51.7126602]
[1644984952411,28.6327,102.41,102.34,148.2426602]
[1644984953112,14.6527,102.41,102.34,51.7126602]
[1644984953312,14.6527,102.41,102.34,51.9626602]
[1644984953712,14.6486,102.42,102.34,51.9626602]
[1644984953910,14.6486,102.42,102.35,96.53]
[1644984954115,14.6486,102.42,102.36,48.07267775]
[1644984954311,14.6486,102.42,102.38,40.4124107]
[1644984956413,14.6486,102.42,102.36,24.0425]
[1644984957415,14.6486,102.42,102.37,46.76352176]
[1644984962124,14.6486,102.42,102.35,24.7216]
[1644984963025,39.163,102.42,102.35,69.91548355]
[1644984964426,39.163,102.42,102.35,84.56708355]
[1644984966327,39.163,102.42,102.35,181.09708355]
[1644984966530,39.163,102.42,102.37,43.19581933]
[1644984976163,39.163,102.42,102.37,139.72581933]
[1644984976662,39.163,102.42,102.37,154.37471933]
[1644984980968,39.163,102.42,102.37,57.84471933]
[1644984981170,39.163,102.42,102.35,24.7216]
[1644984981374,40.51145229,102.42,102.35,24.7216]
[1644984981570,14.6535,102.4,102.35,24.7216]
[1644984982170,14.6535,102.4,102.36,34.37751602]
[1644984984072,43.5483,102.41,102.36,34.37751602]
[1644984984872,14.6535,102.4,102.36,34.37751602]
[1644984988877,14.65,102.41,102.36,130.90751602]
[1644984989275,14.65,102.41,102.36,34.37751602]
[1644984989882,14.65,102.41,102.36,49.02791602]
[1644984990479,14.65,102.41,102.36,145.55791602]
[1644984990877,39.1631,102.42,102.36,147.97568492]
[1644984992382,39.1631,102.42,102.36,51.44568492]
[1644984992778,39.1631,102.42,102.36,147.97568492]
[1644984994280,39.1631,102.42,102.36,17.0681689]
[1644984994479,39.1631,102.42,102.35,14.6511]
[1644984994679,1.34845229,102.41,102.34,2.4177689]
[1644984994883,14.6535,102.39,102.33,24.845]
[1644984995380,14.6535,102.39,102.34,37.47428104]
[1644984997683,14.6535,102.39,102.34,134.00428104]
[1644984999886,38.9366,102.4,102.34,148.65568104]
[1644985003392,38.9366,102.4,102.34,37.47428104]
[1644985004493,40.28505229,102.4,102.34,37.47428104]
[1644985004892,54.26505229,102.4,102.34,37.47428104]
[1644985005893,54.26505229,102.4,102.32,0.61934646]
[1644985006894,54.26505229,102.4,102.33,46.21363186]
[1644985012200,1.34845229,102.39,102.33,46.21363186]
[1644985012398,14.6577,102.38,102.33,46.21363186]
[1644985012602,14.6577,102.38,102.32,0.61934646]
[1644985012800,52.6243,102.38,102.32,0.61934646]
[1644985013700,1.34845229,102.37,102.32,0.61934646]
[1644985013900,15.32845229,102.37,102.32,0.61934646]
[1644985014325,14.6632,102.36,102.32,0.61934646]
[1644985014502,13.98,102.35,102.32,0.61934646]
[1644985015305,14.6632,102.34,102.32,0.61934646]
[1644985018508,20.9392,102.34,102.32,0.61934646]
[1644985018709,34.9192,102.34,102.32,0.61934646]
[1644985018906,34.9192,102.34,102.32,0.30669012]
[1644985019309,14.6708,102.32,102.3,0.05892418]
[1644985019509,185.4326,102.33,102.31,0.20085444]
[1644985019510,321.53105229,102.33,102.31,0.20085444]
[1644985019711,13.98,102.31,102.29,0.11784836]
[1644985019911,13.98,102.3,102.29,0.11784836]
[1644985020509,28.6525,102.3,102.29,0.15908856]
[1644985020712,28.6525,102.3,102.29,0.40170888]
[1644985021011,28.6525,102.3,102.29,0.6374056]
[1644985021831,28.6525,102.3,102.29,3.66960557]
[1644985022711,14.6725,102.3,102.29,3.66960557]
[1644985023714,14.6725,102.3,102.29,0.6374056]
[1644985024115,14.6725,102.3,102.29,1.59218872]
[1644985024317,14.6657,102.31,102.29,1.59218872]
[1644985024920,28.6457,102.31,102.29,1.59218872]
[1644985025119,28.6457,102.31,102.29,0.6374056]
[1644985028430,31.0634689,102.31,102.29,0.6374056]
[1644985028630,28.6457,102.31,102.29,0.6374056]
[1644985029031,28.6457,102.31,102.29,1.2748112]
[1644985029644,28.6457,102.31,102.27,0.4765825]
[1644985030051,31.0634689,102.31,102.27,0.4765825]
[1644985030850,28.6457,102.31,102.27,0.4765825]
[1644985032052,31.0634689,102.31,102.27,0.4765825]
[1644985032847,31.0634689,102.31,102.26,0.89005058]
[1644985033553,127.5934689,102.31,102.26,0.89005058]
[1644985033955,127.5934689,102.31,102.25,0.58313898]
[1644985034754,120.0258,102.3,102.25,0.58313898]
[1644985034954,28.6563,102.29,102.25,0.58313898]
[1644985035755,125.1863,102.29,102.23,0.37630524]
[1644985036054,14.6806,102.27,102.23,0.37630524]
[1644985036253,13.98,102.26,102.23,0.37630524]
[1644985037264,14.6782,102.25,102.23,0.37630524]
[1644985037468,96.53,102.24,102.22,771.3469]
[1644985037666,13.98,102.23,102.22,556.3141]
[1644985037866,13.98,102.23,102.22,538.7141]
[1644985038263,13.98,102.23,102.22,587.50468669]
[1644985038667,13.98,102.23,102.22,590.53688666]
[1644985038864,13.98,102.23,102.22,587.50468669]
[1644985039474,28.6647,102.23,102.22,587.50468669]
[1644985039865,37.1054,102.26,102.23,44.0]
[1644985040067,13.98,102.26,102.24,39.75900491]
[1644985040667,13.98,102.26,102.22,538.7141]
[1644985040867,14.6754,102.25,102.22,538.7141]
[1644985041673,14.6754,102.25,102.23,38.01166112]
[1644985041873,14.6754,102.25,102.23,41.04386109]
[1644985042475,44.0,102.24,102.22,489.1914]
[1644985042672,111.2111,102.23,102.22,293.21497073]
[1644985042875,28.6611,102.23,102.22,260.14782506]
[1644985043074,31.0788689,102.23,102.22,162.26382506]
[1644985043472,28.6611,102.23,102.22,162.26382506]
[1644985043672,28.6611,102.23,102.22,64.38202506]
[1644985044276,31.69329997,102.23,102.21,1.3076676]
[1644985045673,53.64485283,102.23,102.21,1.3076676]
[1644985047774,56.06262173,102.23,102.21,1.3076676]
[1644985048674,67.29514802,102.23,102.19,2.31693082]
[1644985049075,88.5705264,102.23,102.19,2.31693082]
[1644985049374,88.5705264,102.23,102.19,1.81693082]
[1644985049777,86.1527575,102.23,102.19,1.81693082]
[1644985050275,88.5705264,102.23,102.19,1.81693082]
[1644985052781,185.1005264,102.23,102.19,1.81693082]
[1644985053179,88.5705264,102.23,102.19,1.81693082]
[1644985054378,111.2179,102.21,102.19,0.90382016]
[1644985054578,13.98,102.2,102.19,1.171306]
[1644985054781,13.98,102.2,102.18,1.50879986]
[1644985054982,13.98,102.2,102.18,1.16981968]
[1644985055781,13.98,102.2,102.18,0.28758112]
[1644985055980,28.6689,102.2,102.18,0.28758112]
[1644985056181,3.03219997,102.19,102.18,0.28758112]
[1644985056379,17.01219997,102.19,102.18,0.57516224]
[1644985056980,17.01219997,102.19,102.17,0.56531036]
[1644985057180,31.70039997,102.19,102.17,0.56531036]
[1644985059685,31.70039997,102.19,102.13,46.6764756]
[1644985059887,31.70039997,102.19,102.13,46.1764756]
[1644985060090,128.23039997,102.19,102.11,0.4660014]
[1644985060289,154.18146887,102.19,102.11,24.4760014]
[1644985060985,57.65146887,102.19,102.11,24.4760014]
[1644985061187,57.65146887,102.19,102.11,24.57575462]
[1644985061388,154.18146887,102.19,102.11,24.57575462]
[1644985061591,79.60302173,102.19,102.11,24.57575462]
[1644985061788,79.60302173,102.19,102.11,59.99182483]
[1644985061987,55.23369997,102.19,102.11,59.99182483]
[1644985063388,57.65146887,102.19,102.11,59.99182483]
[1644985063789,55.23369997,102.19,102.11,59.99182483]
[1644985064590,151.76369997,102.19,102.11,59.99182483]
[1644985065196,55.23369997,102.19,102.11,59.99182483]
[1644985066493,55.23369997,102.19,102.11,162.41682483]
[1644985066494,31.70039997,102.19,102.11,162.41682483]
[1644985066691,28.6682,102.19,102.11,162.41682483]
[1644985066894,28.6682,102.19,102.11,65.88682483]
[1644985067092,28.6682,102.19,102.11,65.72090569]
[1644985067293,28.6682,102.19,102.11,65.88682483]
[1644985067697,28.6682,102.19,102.11,59.99182483]
[1644985068094,14.6882,102.19,102.11,59.99182483]
[1644985068893,28.6682,102.19,102.11,59.99182483]
[1644985071716,28.6682,102.19,102.11,156.52182483]
[1644985072517,28.6682,102.19,102.11,59.99182483]
[1644985072917,28.6682,102.19,102.11,74.67622483]
[1644985073619,28.6682,102.19,102.12,96.53]
[1644985073819,28.6682,102.19,102.13,44.30340638]
[1644985075824,28.6682,102.19,102.12,0.39983548]
[1644985076024,52.2394,102.19,102.12,0.39983548]
[1644985076226,53.58785229,102.19,102.12,0.39983548]
[1644985076524,14.6907,102.17,102.12,0.39983548]
[1644985076724,13.98,102.16,102.12,0.39983548]
[1644985077126,13.98,102.16,102.12,47.11618278]
[1644985077627,14.6913,102.15,102.12,0.39983548]
[1644985077830,3.03219997,102.14,102.12,0.39983548]
[1644985078428,13.98,102.13,102.12,0.39983548]
[1644985078627,12.98,102.13,102.12,0.39983548]
[1644985078828,27.6723,102.13,102.11,5.462e-05]
[1644985079130,3.03219997,102.12,102.11,5.462e-05]
[1644985079333,17.01219997,102.12,102.11,5.462e-05]
[1644985079730,31.70939997,102.12,102.11,5.462e-05]
[1644985080337,31.70939997,102.12,102.1,0.37090878]
[1644985080531,174.75,102.11,102.1,0.37090878]
[1644985080733,188.73,102.11,102.1,0.37090878]
[1644985080931,188.73,102.11,102.08,1.82795662]
[1644985081131,208.46433064,102.11,102.02,49.17557284]
[1644985081333,3.03219997,102.1,102.02,49.17557284]
[1644985081532,49.98,102.09,102.02,49.17557284]
[1644985081735,55.0,102.08,101.98,1.62601002]
[1644985081936,44.0,102.05,101.97,5.25073903]
[1644985082132,51.062,102.05,101.94,1.38400783]
[1644985082332,189.4605,102.03,101.93,2.35170733]
[1644985082534,13.98,102.02,101.93,2.35170733]
[1644985082737,13.98,102.02,101.93,0.9676995]
[1644985082738,193.943,102.02,101.93,0.9676995]
[1644985083039,174.75,102.01,101.99,0.2581494]
[1644985083239,188.73,102.0,101.99,0.2581494]
[1644985083435,188.73,102.0,101.92,0.19365426]
[1644985083739,34.0,101.99,101.92,0.19365426]
[1644985083945,13.98,101.98,101.92,0.19365426]
[1644985084741,174.75,101.97,101.92,0.19365426]
[1644985084937,28.7009,101.96,101.92,0.19365426]
[1644985085140,13.98,101.96,101.92,0.19365426]
[1644985085642,49.0667,101.99,101.92,0.19365426]
[1644985085838,63.0467,101.99,101.92,0.19365426]
[1644985086037,14.7178,101.98,101.92,35.9583805]
[1644985086239,13.98,101.98,101.92,0.19365426]
[1644985086837,13.98,102.0,101.92,0.19365426]
[1644985087040,13.98,102.01,101.92,0.19365426]
[1644985087338,13.98,102.01,101.92,43.74641274]
[1644985088243,13.98,102.01,101.92,46.16418164]
[1644985089491,14.7147,102.0,101.92,43.74641274]
[1644985089692,13.98,102.0,101.92,43.74641274]
[1644985089886,13.98,102.0,101.92,0.19365426]
[1644985090292,13.98,102.0,101.91,0.4660014]
[1644985090293,271.28,101.98,101.91,0.4660014]
[1644985090494,13.98,101.97,101.91,0.4660014]
[1644985090687,31.70124397,101.97,101.91,0.4660014]
[1644985090889,13.98,101.97,101.91,0.4660014]
[1644985091288,16.3977689,101.97,101.91,0.4660014]
[1644985091486,191.1477689,101.97,101.91,0.4660014]
[1644985091689,2.4177689,101.96,101.91,0.4660014]
[1644985091886,13.98,101.95,101.92,2.6377306]
[1644985092090,3.03219997,101.94,101.92,2.6377306]
[1644985092287,17.01219997,101.94,101.92,2.6377306]
[1644985092688,13.98,101.94,101.92,2.6377306]
[1644985093288,13.98,101.96,101.92,2.6377306]
[1644985093496,13.98,101.97,101.92,2.6377306]
[1644985094695,13.98,101.97,101.92,38.78890972]
[1644985094891,13.98,101.97,101.92,2.6377306]
[1644985095495,188.73,101.97,101.92,2.6377306]
[1644985095692,174.75,101.96,101.92,2.6377306]
[1644985095895,13.98,101.95,101.92,2.6377306]
[1644985096098,14.7279,101.93,101.92,3.82011196]
[1644985096295,28.7079,101.93,101.92,4.7857297]
[1644985097299,28.7079,101.93,101.92,5.09157656]
[1644985097499,28.7079,101.93,101.92,5.61081224]
[1644985097702,28.7079,101.93,101.92,7.656e-05]
[1644985098002,28.7079,101.93,101.91,0.88442426]
[1644985098204,28.7079,101.93,101.92,1.20553976]
[1644985098401,28.7079,101.93,101.92,3.976e-05]
[1644985098609,28.7079,101.93,101.88,1.418061]
[1644985098610,205.8756689,101.93,101.88,1.418061]
[1644985098801,174.75,101.91,101.88,1.418061]
[1644985099005,28.7109,101.9,101.88,1.418061]
[1644985099401,28.7109,101.9,101.88,2.60774128]
[1644985099701,3.03219997,101.89,101.88,2.60774128]
[1644985099904,3.03219997,101.89,101.88,38.66584493]
[1644985099905,13.98,101.89,101.88,38.66584493]
[1644985100732,3.03219997,101.89,101.88,38.66584493]
[1644985100930,14.7267,101.92,101.88,38.66584493]
[1644985101133,13.98,101.93,101.88,38.66584493]
[1644985103636,13.98,101.93,101.87,1.76795432]
[1644985103832,28.7048,101.93,101.87,1.76795432]
[1644985104533,41.723444,101.93,101.87,1.76795432]
[1644985104734,158.2569102,101.93,101.87,1.76795432]
[1644985104933,335.4246791,101.93,101.87,1.76795432]
[1644985105936,96.53,101.92,101.85,0.4765825]
[1644985106138,14.731,101.9,101.85,0.4765825]
[1644985106338,13.98,101.89,101.85,0.4765825]
[1644985106738,13.98,101.89,101.85,35.6264446]
[1644985107339,13.98,101.89,101.85,0.4765825]
[1644985107537,111.2622,101.88,101.84,0.60368014]
[1644985107740,13.98,101.87,101.84,0.60368014]
[1644985108039,3.03219997,101.86,101.84,0.60368014]
[1644985108243,13.98,101.85,101.83,0.60000266]
[1644985108439,13.98,101.85,101.83,38.76558239]
[1644985108643,27.7164,101.85,101.83,34.76558239]
[1644985108840,12.98,101.85,101.83,34.76558239]
[1644985109441,174.75,101.9,101.84,43.0]
[1644985109641,13.98,101.89,101.84,43.0]
[1644985109842,28.68995,101.89,101.84,43.0]
[1644985110540,28.68995,101.89,101.85,44.22999468]
[1644985110740,49.0957,101.92,101.85,44.22999468]
[1644985110944,28.7072,101.91,101.85,44.22999468]
[1644985111540,223.8351,101.95,101.85,44.22999468]
[1644985111741,13.98,101.94,101.86,13.0]
[1644985111942,62.7569,101.96,101.87,40.8784563]
[1644985112142,13.98,101.96,101.87,40.8784563]
[1644985112342,14.7212,101.95,101.87,40.8784563]
[1644985112540,13.98,101.96,101.87,43.2962252]
[1644985112741,13.98,101.98,101.87,43.2962252]
[1644985113343,42.56572563,101.98,101.87,40.8784563]
[1644985113542,57.28242563,101.98,101.87,40.8784563]
[1644985113845,28.6967,101.98,101.87,40.8784563]
[1644985115242,5.38827792,101.97,101.87,40.8784563]
[1644985115545,28.6975,101.97,101.87,40.8784563]
[1644985115746,28.6975,101.97,101.88,96.53]
[1644985116345,28.6975,101.97,101.89,40.08777236]
[1644985117944,40.24519461,101.97,101.89,40.08777236]
[1644985118346,28.6975,101.97,101.89,40.08777236]
[1644985118748,14.7175,101.97,101.89,40.08777236]
[1644985119850,14.7175,101.97,101.89,136.61777236]
[1644985120051,14.7175,101.97,101.89,40.08777236]
[1644985121251,26.5075,101.97,101.89,40.08777236]
[1644985121653,10.95145161,101.96,101.89,40.08777236]
[1644985121954,14.7199,101.95,101.89,40.08777236]
[1644985122753,11.79,101.94,101.89,40.08777236]
[1644985122952,14.7233,101.93,101.89,40.08777236]
[1644985123151,26.5133,101.93,101.85,48.1542]
[1644985123353,26.5133,101.93,101.83,79.72140783]
[1644985123552,26.5133,101.93,101.82,24.41550783]
[1644985124154,35.67208259,101.92,101.83,40.64349205]
[1644985124356,14.7289,101.9,101.83,40.64349205]
[1644985124554,29.72076777,101.9,101.83,40.64349205]
[1644985124753,26.5189,101.9,101.83,40.64349205]
[1644985127264,7.40512528,101.89,101.81,1.91032097]
[1644985127566,14.7292,101.88,101.81,0.52631314]
[1644985127864,11.79,101.87,101.81,0.52631314]
[1644985128063,103.93512528,101.89,101.81,0.52631314]
[1644985128264,11.79,101.87,101.82,38.66861015]
[1644985128664,14.7329,101.86,101.82,38.66861015]
[1644985128866,11.79,101.87,101.82,38.66861015]
[1644985129073,11.79,101.89,101.82,38.66861015]
[1644985129665,14.7303,101.88,101.82,38.66861015]
[1644985131570,11.79,101.87,101.82,38.66861015]
[1644985131767,14.7336,101.86,101.82,38.66861015]
[1644985132368,14.7336,101.86,101.81,0.52631314]
[1644985132768,26.5236,101.86,101.81,0.52631314]
[1644985133367,26.5236,101.86,101.81,44.18505526]
[1644985133773,26.5236,101.86,101.81,0.52631314]
[1644985134774,1.25752772,101.85,101.81,0.52631314]
[1644985134975,26.5284,101.84,101.81,0.52631314]
[1644985135177,3.03219997,101.83,101.81,0.52631314]
[1644985136374,17.77029997,101.83,101.79,0.90348748]
[1644985136574,96.53,101.81,101.79,0.90348748]
[1644985136779,96.53,101.81,101.78,0.4801549]
[1644985136780,108.32,101.8,101.76,0.68925696]
[1644985136976,11.79,101.79,101.76,0.68925696]
[1644985137376,5.8072614,101.78,101.73,0.30105204]
[1644985137576,14.7473,101.77,101.73,0.30105204]
[1644985137976,11.79,101.76,101.73,0.30105204]
[1644985138376,33.06668896,101.75,101.73,0.30105204]
[1644985138576,44.85668896,101.75,101.73,0.30105204]
[1644985138780,3.03219997,101.74,101.73,0.30105204]
[1644985139381,5.02883376,101.73,101.7,0.48476164]
[1644985139582,16.81883376,101.73,101.7,0.48476164]
[1644985139982,3.03219997,101.72,101.7,0.48476164]
[1644985140177,11.79,101.71,101.7,0.48476164]
[1644985140582,11.79,101.73,101.7,0.48476164]
[1644985140782,11.79,101.75,101.7,0.48476164]
[1644985140977,2.4177689,101.77,101.7,0.48476164]
[1644985141984,147.33,101.87,101.7,15.22636164]
[1644985142180,11.79,101.83,101.71,40.93106699]
[1644985142580,11.79,101.83,101.71,41.18106699]
[1644985142780,11.79,101.83,101.71,43.59883589]
[1644985142986,11.79,101.83,101.72,2.4177689]
[1644985143181,11.79,101.83,101.72,17.4065689]
[1644985143381,11.79,101.83,101.72,17.1565689]
[1644985143581,11.79,101.83,101.72,2.6677689]
[1644985143782,11.79,101.83,101.72,9.6707689]
[1644985143982,11.79,101.85,101.73,37.47550781]
[1644985144182,11.79,101.85,101.73,54.63087671]
[1644985144382,11.79,101.85,101.74,2.4177689]
[1644985144593,52.57747804,101.87,101.74,2.4177689]
[1644985144783,14.2077689,101.89,101.74,2.6677689]
[1644985145186,11.79,101.89,101.74,99.1977689]
[1644985145384,11.79,101.89,101.75,47.71268301]
[1644985145585,11.79,101.89,101.77,14.7311]
[1644985145986,59.4356,101.91,101.77,26.7711]
[1644985146187,11.79,101.91,101.77,27.76003172]
[1644985146390,11.79,101.91,101.78,2.4177689]
[1644985146587,19.52283458,101.91,101.8,14.7274]
[1644985146789,19.52283458,101.91,101.81,37.00025574]
[1644985146986,11.79,101.91,101.81,37.00025574]
[1644985147188,11.79,101.91,101.81,39.41802464]
[1644985147588,11.79,101.91,101.81,42.81025574]
[1644985147789,11.79,101.93,101.81,42.81025574]
[1644985147988,11.79,101.93,101.81,45.47802464]
[1644985148198,11.79,101.93,101.81,45.73291128]
[1644985148387,11.79,101.93,101.82,96.53]
[1644985148588,67.74165444,101.97,101.82,108.57]
[1644985148788,45.9001,101.97,101.82,108.57]
[1644985148987,29.81631211,101.98,101.83,132.63970457]
[1644985149187,29.81631211,101.98,101.84,11.79]
[1644985149424,29.81631211,101.98,101.85,43.6893237]
[1644985149616,29.81631211,101.98,101.88,42.50542872]
[1644985150013,41.60631211,101.98,101.88,42.50542872]
[1644985150214,41.60631211,101.98,101.85,23.8383]
[1644985150615,41.60631211,101.98,101.85,26.2560689]
[1644985150816,41.60631211,101.98,101.85,23.8383]
[1644985151014,56.32631211,101.98,101.85,38.5583]
[1644985151218,56.32631211,101.98,101.86,41.61251394]
[1644985152215,152.85631211,101.98,101.86,41.61251394]
[1644985152430,177.85831477,101.98,101.84,23.122]
[1644985152616,96.53,101.96,101.84,23.122]
[1644985152818,14.7271,101.93,101.84,23.122]
[1644985153019,11.79,101.92,101.83,22.9394]
[1644985153220,11.79,101.92,101.81,0.25488664]
[1644985153418,19.08389289,101.92,101.81,37.16686358]
[1644985153821,11.79,101.92,101.81,51.89336358]
[1644985154019,11.79,101.92,101.81,54.31113248]
[1644985154419,11.79,101.92,101.81,39.58463248]
[1644985154818,31.88990687,101.91,101.81,39.58463248]
[1644985155022,26.5174,101.92,101.81,39.58463248]
[1644985155320,23.351,101.94,101.81,45.13063248]
[1644985155321,11.79,101.93,101.81,45.13063248]
[1644985155520,23.351,101.94,101.81,56.92063248]
[1644985155921,32.49563231,101.93,101.81,56.92063248]
[1644985156123,47.22113231,101.93,101.81,66.10083248]
[1644985156623,14.7255,101.93,101.81,66.35083248]
[1644985156821,61.3951,101.95,101.81,66.35083248]
[1644985157630,28.64749174,101.94,101.81,66.35083248]
[1644985157823,28.64749174,101.94,101.81,164.51083248]
[1644985158024,24.9203,101.96,101.81,165.89484031]
[1644985158223,49.0679,101.99,101.82,1.38400783]
[1644985158224,60.8579,101.99,101.82,1.38400783]
[1644985158424,11.79,101.99,101.87,14.7176]
[1644985158623,11.79,101.99,101.87,19.8826]
[1644985159024,27.78522377,101.98,101.88,40.31177161]
[1644985159423,27.78522377,101.98,101.88,42.72954051]
[1644985159625,27.78522377,101.98,101.88,40.31177161]
[1644985159825,26.5073,101.99,101.88,40.31177161]
[1644985160027,26.5073,101.99,101.88,42.72954051]
[1644985160231,140.20397599,101.99,101.88,42.72954051]
[1644985160428,2.4177689,101.98,101.88,40.31177161]
[1644985160627,11.79,101.97,101.88,40.31177161]
[1644985160827,47.71980893,101.97,101.88,40.31177161]
[1644985161429,11.79,101.97,101.88,40.31177161]
[1644985162328,14.7182,101.98,101.88,40.31177161]
[1644985163528,20.11122127,101.98,101.88,40.31177161]
[1644985163928,14.7182,101.98,101.88,40.31177161]
[1644985164330,75.5365689,102.0,101.88,153.18827161]
[1644985164530,1.34845229,102.03,101.9,98.16]
[1644985164731,1.34845229,102.06,101.91,11.79]
[1644985164934,26.44861465,102.03,101.91,62.19042101]
[1644985165133,1.34845229,102.06,101.91,62.44042101]
[1644985165332,79.14909437,102.07,101.92,47.6838]
[1644985165531,77.80064208,102.07,101.93,11.79]
[1644985165731,14.7069,102.06,101.95,14.7059]
[1644985166131,41.15274208,102.07,101.96,38.91222206]
[1644985166132,25.61606609,102.07,101.96,38.91222206]
[1644985166330,76.25432828,102.1,101.96,53.11999096]
[1644985166532,74.90587599,102.1,101.96,50.95222206]
[1644985166734,62.2805,102.1,101.98,14.7021]
[1644985166933,62.2805,102.1,101.99,11.79]
[1644985167331,62.2805,102.1,102.0,35.0636544]
[1644985167332,7.39696379,102.09,102.0,35.0636544]
[1644985167933,7.39696379,102.09,102.0,49.7632544]
[1644985168130,62.2805,102.1,102.0,49.7632544]
[1644985168733,47.5792,102.1,102.0,49.7632544]
[1644985169032,47.5792,102.1,102.0,147.9232544]
[1644985169931,47.5792,102.1,102.0,159.7132544]
[1644985172336,69.46308631,102.1,102.0,61.5532544]
[1644985172834,69.46308631,102.1,102.0,35.0636544]